Cogmind - Beta 14 @@@ ROGUE MODE // 2024.09.07 @ 15:07:20 Player: Fleshy Vegetable Bird Result: Destroyed by G-34 Mercenary with Small Laser Performance ------------- Evolutions (1) 500 Regions Visited (4) 800 Robots Destroyed (63) 315 Value Destroyed (1385) 1385 Prototype IDs (6) 120 Alien Tech Used (0) 0 Bonus (-12) -12 TOTAL SCORE: 3108 Bonus ------- Friendly Fire -12 Cogmind --------- Core Integrity 0/400 Matter 109/300 Energy 100/100 System Corruption 1% Temperature Cool (6) Movement Rolling (140) Ox4 Location -9/Storage Parts ------- > --- POWER (1) -------- (None) > --- PROPULSION (2) --- Wheel > --- UTILITY (4) ------ High-capacity Storage Unit Hacking Suite > --- WEAPON (2) ------- Heavy Hammer > --- INVENTORY (20) --- Huge Storage Unit Improved Sensor Array Improved Sensor Array Improved Propulsion Shielding Hacking Suite Hacking Suite Improved EM Shotgun Improved EM Shotgun Heavy Assault Rifle Autogun Autogun Autogun Improved Assault Rifle Mining Laser Peak State ------------ > --- POWER ------------ Light Nuclear Core > --- PROPULSION ------- Wheel Wheel > --- UTILITY ---------- High-capacity Storage Unit Improved Sensor Array Improved Propulsion Shielding Hacking Suite > --- WEAPON ----------- Improved EM Shotgun Improved EM Shotgun > --- INVENTORY -------- Improved Ion Engine Wheel Wheel Huge Storage Unit Improved Sensor Array Improved Sensor Array Improved Propulsion Shielding Light Armor Plating Light Armor Plating Hacking Suite Hacking Suite Hacking Suite Heavy Assault Rifle Autogun Autogun Autogun Grenade Launcher Grenade Launcher Mining Laser Heavy Hammer [Rating: 24] Favorites ----------- Power Light Nuclear Core Engine Ion Engine Power Core Light Nuclear Core Propulsion Wheel Treads Light Treads Leg Aluminum Leg Wheel Wheel Utility Improved Terrain Scanner Device Improved Terrain Scanner Storage Large Storage Unit Hackware Hacking Suite Protection Light Armor Plating Weapon Medium Laser Energy Gun Medium Laser Ballistic Gun Assault Rifle Launcher Grenade Launcher Special Weapon Mining Laser Impact Weapon Heavy Hammer Build | -11 -10 -10 -9 -9 ------- Run | Yrd Mat Min Mat Sto Slots Evolved 2 | . . . 2 . Power . | . . . . . Propulsion . | . . . . . Utility 2 | . . . 2 . Weapon . | . . . . . Parts Attached 64 | 8 6 10 28 12 Power 7 | 1 1 1 4 . Engine 4 | 1 . . 3 . Core 3 | . 1 1 1 . Reactor . | . . . . . Propulsion 14 | 2 2 3 5 2 Treads 1 | . . . 1 . Leg 4 | 2 2 . . . Wheel 9 | . . 3 4 2 Hover . | . . . . . Flight . | . . . . . Utility 13 | 2 1 1 6 3 Device 3 | 1 . . 2 . Storage 3 | 1 1 . 1 . Processor . | . . . . . Hackware 2 | . . . 1 1 Protection 5 | . . 1 2 2 Artifact . | . . . . . Weapon 30 | 3 2 5 13 7 Energy Gun 8 | 2 1 . 5 . Energy Cannon . | . . . . . Ballistic Gun 7 | 1 1 1 1 3 Ballistic Cannon . | . . . . . Launcher 6 | . . 2 2 2 Special Weapon 5 | . . 2 3 . Impact Weapon 4 | . . . 2 2 Slashing Weapon . | . . . . . Piercing Weapon . | . . . . . Special Melee Weapon . | . . . . . Unidentified Prototypes 3 | . . . 2 1 Parts Lost 20 | . 3 3 9 5 Power 4 | . 1 1 1 1 Propulsion 7 | . 2 1 3 1 Utility 4 | . . 1 2 1 Weapon 5 | . . . 3 2 Highest Loss Streak 7 | . 2 2 7 3 To Critical Strikes . | . . . . . Average Slot Usage (%) 91 | . 98 91 84 87 Engine 5 | . 6 . 8 . Core 6 | . 6 14 2 11 Leg 12 | . 27 6 . . Wheel 11 | . . 20 20 13 Device 8 | . 14 1 7 3 Storage 12 | . 14 14 11 11 Hackware 2 | . . . 4 14 Protection 4 | . . 5 8 12 Energy Gun 14 | . 20 9 11 . Ballistic Gun 7 | . 7 15 3 7 Launcher 1 | . . 1 2 7 Peak Build Rating 24 | 9 12 12 24 23 Average Rating 12 | 6 10 9 15 17 On Entrance 10 | . 9 12 10 23 Naked Turns . | . . . . . Heaviest Build 57 | 14 30 33 56 57 Greatest Support 20 | 20 20 20 20 20 Greatest Overweight (x) 5 | . 3 2 5 5 Average Overweight (x) 1 | . . 1 1 4 Largest Inventory Capacity 20 | 8 15 15 20 20 Average Capacity 14 | 7 10 15 17 20 Most Carried 20 | 5 9 9 20 20 Average Carried 8 | 1 6 7 11 15 Final Capacity 20 | 8 15 15 20 20 Final Carried 20 | 3 9 8 20 14 Class Distribution -------------------- 61% | Mutant 37% | Scavenger-Mutant Dominant Class ---------------- Mutant | -10/Materials Mutant | -10/Mines Mutant | -9/Materials Mutant | -9/Storage Resources | -11 -10 -10 -9 -9 ----------- Run | Yrd Mat Min Mat Sto Matter Collected 1054 | 280 129 118 527 . Remotely . | . . . . . Salvage Created 1953 | 174 641 287 741 110 Parts 110 | 9 29 12 44 16 Haulers Intercepted 6 | . 2 . 4 . Recyclers Shooed 2 | . 1 1 . . Parts Field Recycled . | . . . . . Retrieved Matter . | . . . . . Parts Self-Destructed . | . . . . . Prevented . | . . . . . Kills | -11 -10 -10 -9 -9 ------- Run | Yrd Mat Min Mat Sto Combat Hostiles Destroyed 37 | . 11 8 14 4 Guns 21 | . 11 2 7 1 Cannons 1 | . . . 1 . AOE 14 | . . 6 5 3 Classes Destroyed 10 | 3 4 1 1 1 Worker 6 | 1 2 . 2 1 Builder 2 | . . 1 . 1 Tunneler 6 | 3 2 1 . . Hauler 6 | . 2 . 4 . Recycler 2 | 1 . 1 . . Operator 1 | . . . . 1 Watcher 3 | . 2 . 1 . Swarmer 9 | . 3 . 3 3 Grunt 22 | . 8 8 6 . Sentry 6 | . . . 5 1 Best Kill Streak 6 | 2 6 4 3 5 Combat Bots Only 4 | . 3 4 3 4 Max Kills in Single Turn 3 | 1 1 3 2 2 Gunslinging . | . . . . . Exploded 3 | . . 3 2 2 Melee . | . . . . . Uniques/NPCs Destroyed . | . . . . . Combat | -11 -10 -10 -9 -9 -------- Run | Yrd Mat Min Mat Sto Hostile Shots Fired 245 | . 71 37 101 36 Missed 70 | . 22 6 31 11 Damage Taken 2532 | . 628 417 1055 432 Core 646 | . 150 93 314 89 Absorbed by Shields . | . . . . . Redirected to Shielding 94 | . . . 94 . Core Remaining (%) 51 | 100 . 2 . . Volleys Fired 158 | 12 62 27 54 3 Largest 2 | 2 2 2 2 2 Hottest 100 | 90 90 70 100 46 Shots Fired 281 | 24 116 49 88 4 Gun 255 | 24 116 41 72 2 Cannon . | . . . . . Launcher 24 | . . 8 14 2 Special 2 | . . . 2 . Kinetic 70 | . 20 22 26 2 Thermal 150 | 24 96 19 11 . Explosive 24 | . . 8 14 2 Electromagnetic 37 | . . . 37 . Robot Hit Streak 15 | 3 8 6 15 1 Robot Miss Streak 5 | 3 5 4 3 2 Penetration Max . | . . . . . Secondary Targets 1 | . 1 . . . Max Gunslinging Chain 1 | . 1 . . . Shots Hit Robots 189 | 11 78 31 68 1 Core Hits 108 | 6 33 20 38 11 Critical Kills . | . . . . . Critical Parts Destroyed . | . . . . . Critical Strikes 6 | . 6 . . . Burn 6 | . 6 . . . Melee Attacks 15 | . . . 9 6 Impact 15 | . . . 9 6 Slashing . | . . . . . Piercing . | . . . . . Sneak Attacks 1 | . . . 1 . Combat Hostiles . | . . . . . Follow-up Attacks . | . . . . . Damage Inflicted 3880 | 140 967 732 1740 301 Guns 2286 | 140 967 323 839 17 Cannons . | . . . . . Explosions 1345 | . . 409 652 284 Melee 213 | . . . 213 . Ramming . | . . . . . Kinetic 643 | . 190 187 249 17 Thermal 1314 | 140 777 136 261 . Explosive 1197 | . . 409 504 284 Electromagnetic 513 | . . . 513 . Impact 213 | . . . 213 . Slashing . | . . . . . Piercing . | . . . . . Highest Corruption 1 | . 1 1 1 1 Average Corruption 1 | . 1 1 1 1 Corruption Purged . | . . . . . Corruption Blocked . | . . . . . Effects 21 | . 8 3 8 2 Message Errors 5 | . 2 1 2 . Matter Fused 6 | . 3 1 2 . Heat Flow Errors 2 | . 2 . . . Energy Discharges 3 | . . . 2 1 Parts Fused 1 | . . 1 . . Data Loss (minor) 2 | . . . 1 1 Data Loss (major) 1 | . 1 . . . Misfires 1 | . . . 1 . Overload Shots . | . . . . . Overflow Damage 125 | . . . 83 42 Projectiles . | . . . . . Explosions 88 | . . . 46 42 Melee 37 | . . . 37 . Knockbacks . | . . . . . Impact . | . . . . . Kinetic . | . . . . . Secondary . | . . . . . Self-Inflicted Damage 171 | . . 10 41 120 Shots 5 | . . 1 2 2 Rammed . | . . . . . Targets Rammed . | . . . . . Kicked . | . . . . . Crushed . | . . . . . Highest Temperature 448 | 150 448 147 140 9 Average Temperature 67 | 53 90 45 40 6 Received Heat Transfer 1147 | . 327 298 381 141 Effects 3 | . 3 . . . Shutdowns 1 | . 1 . . . Short Circuit 1 | . 1 . . . Damage (minor) 1 | . 1 . . . Siege Activations . | . . . . . Robots Corrupted 2 | . . . 2 . Combat Hostiles 1 | . . . 1 . Parts Fried 2 | . . . 2 . Impact Corruptions 2 | . . . 2 . Robots Melted . | . . . . . Combat Hostiles . | . . . . . Parts Melted 9 | . 8 . 1 . Heat Transferred 3838 | 372 2550 407 509 . Parts Sabotaged . | . . . . . Parts Stolen . | . . . . . Parts Stripped . | . . . . . Power Chain Reactions 3 | . . . 3 . Alert | -11 -10 -10 -9 -9 ------- Run | Yrd Mat Min Mat Sto Peak Influence 351 | 25 239 123 310 351 Initial 130 | . 16 . 35 130 Average 83 | 10 77 37 86 282 Maximum Alert Level 1 | . 1 . 1 1 Low Security (%) 91 | 100 91 100 97 23 Level 1 8 | . 8 . 2 76 Level 2 . | . . . . . Level 3 . | . . . . . Level 4 . | . . . . . Level 5 . | . . . . . High Security . | . . . . . Max Security . | . . . . . Squads Dispatched 3 | . 1 . 1 1 Investigation . | . . . . . Extermination . | . . . . . Reinforcement 3 | . 1 . 1 1 Assault . | . . . . . Garrison . | . . . . . Intercept . | . . . . . Searches Triggered . | . . . . . Construction Impeded . | . . . . . Haulers Reinforced . | . . . . . Active Scanning Responses . | . . . . . Cargo Convoy Interrupts . | . . . . . Stealth | -11 -10 -10 -9 -9 --------- Run | Yrd Mat Min Mat Sto Distress Signals 4 | . 1 . 2 1 Communications Jammed . | . . . . . Distress Signals . | . . . . . Times Spotted 67 | . 20 9 26 12 Peak Tracking Total 7 | . 4 5 7 5 Tactical Retreats 4 | . . 1 1 2 Traps | -11 -10 -10 -9 -9 ------- Run | Yrd Mat Min Mat Sto Traps Triggered 6 | . 1 . 1 4 Indirectly . | . . . . . Trap Hack Attempts . | . . . . . Triggered . | . . . . . Disarmed . | . . . . . Reprogrammed . | . . . . . Reused . | . . . . . Traps Extracted . | . . . . . Installed . | . . . . . Triggered . | . . . . . Machines | -11 -10 -10 -9 -9 ---------- Run | Yrd Mat Min Mat Sto Machines Disabled 4 | . . . . 4 Max in Single Turn 1 | . . . . 1 Machines Repaired . | . . . . . Machines Dismantled . | . . . . . Machines Sabotaged . | . . . . . Overloaded Fab Kills . | . . . . . Hacking | -11 -10 -10 -9 -9 --------- Run | Yrd Mat Min Mat Sto Machines Accessed 13 | . 4 . 7 2 Terminals 12 | . 4 . 6 2 Fabricators . | . . . . . Repair Stations . | . . . . . Recycling Units . | . . . . . Scanalyzers 1 | . . . 1 . Garrison Access . | . . . . . Total Hacks 47 | . 8 . 29 10 Successful 28 | . 4 . 19 5 Failed 19 | . 4 . 10 5 Catastrophic 4 | . 1 . 2 1 Database Lockouts . | . . . . . Manual 30 | . 5 . 17 8 Terminals 38 | . 8 . 20 10 Fabricators . | . . . . . Repair Stations . | . . . . . Recycling Units . | . . . . . Scanalyzers 9 | . . . 9 . Garrison Access . | . . . . . Terminal Hacks 7 | . 2 . 3 2 Robot Analysis 1 | . 1 . . . Prototype ID Bank 1 | . 1 . . . Branch Access Points 2 | . . . 1 1 Terminal Index 1 | . . . 1 . Locate Traps 1 | . . . 1 . Zone Layout 1 | . . . . 1 Fabricator Hacks . | . . . . . Repair Station Hacks . | . . . . . Recycling Unit Hacks . | . . . . . Scanalyzer 9 | . . . 9 . Insert Component 4 | . . . 4 . Analyze 5 | . . . 5 . Garrison Access Hacks . | . . . . . Unauthorized Hacks 12 | . 2 . 7 3 Terminals 12 | . 2 . 7 3 Track 1 | . . . 1 . Assimilate 1 | . . . 1 . Botnet 8 | . 2 . 4 2 Disrupt 1 | . . . . 1 Operators 1 | . . . 1 . Fabricators . | . . . . . Repair Stations . | . . . . . Recycling Units . | . . . . . Scanalyzers . | . . . . . Garrison Access . | . . . . . Data Cores Recovered . | . . . . . Used . | . . . . . Hacking Detections 12 | . 3 . 7 2 Full Trace Events 2 | . 1 . . 1 Feedback Events . | . . . . . Feedback Blocked . | . . . . . Robot Schematics Acquired . | . . . . . Robots Built . | . . . . . Authchips . | . . . . . Time . | . . . . . Total Robot Build Rating . | . . . . . Part Schematics Acquired 4 | . . . 4 . Parts Built . | . . . . . Authchips . | . . . . . Time . | . . . . . Total Part Build Rating . | . . . . . Parts Repaired . | . . . . . Time . | . . . . . Parts Recycled . | . . . . . Recycled Matter . | . . . . . Retrieved Matter . | . . . . . Retrieved Components . | . . . . . Parts Scanalyzed 4 | . . . 4 . Part Schematics Acquired 4 | . . . 4 . Parts Damaged . | . . . . . Bothacking | -11 -10 -10 -9 -9 ------------ Run | Yrd Mat Min Mat Sto Used RIF Installer . | . . . . . Robots Hacked . | . . . . . Non-combat . | . . . . . Combat . | . . . . . Robot Hacks Applied . | . . . . . Relay Couplers Released . | . . . . . Fabnet Peak Effective % . | . . . . . Robots Rewired . | . . . . . Allies Hacked . | . . . . . Hacks Repelled . | . . . . . Allies | -11 -10 -10 -9 -9 -------- Run | Yrd Mat Min Mat Sto Total Allies 1 | . . . 1 . Largest Group 1 | . . . 1 . Highest-Rated Group 10 | . . . 10 . Highest-Rated Ally 10 | . . . 10 . Total Orders . | . . . . . Ally Attacks . | . . . . . Total Damage . | . . . . . Kills . | . . . . . Allies Corrupted . | . . . . . Allies Melted . | . . . . . Intel | -11 -10 -10 -9 -9 ------- Run | Yrd Mat Min Mat Sto Robot Analysis Total 1 | . 1 . . . Derelict Logs Recovered 1 | . . 1 . . Drone Launches . | . . . . . Drone Recoveries . | . . . . . Exploration | -11 -10 -10 -9 -9 ------------- Run | Yrd Mat Min Mat Sto Turns Passed 3134 | 142 1210 524 1074 184 Spaces Moved 1985 | 77 673 400 759 76 Core 23 | 16 7 . . . Treads 19 | . . . 19 . Legs 769 | 61 666 42 . . Wheels 1174 | . . 358 740 76 Hover . | . . . . . Flight . | . . . . . Fastest Speed 50 | 50 120 95 95 110 Average Speed 120 | 105 144 105 106 142 Slowest Speed 260 | 120 200 260 240 155 Overloaded Moves . | . . . . . Propulsion Burnouts . | . . . . . Robots Hopped . | . . . . . Cave-ins Triggered . | . . . . . Exploration Rate (%) 50 | 6 78 85 56 27 Regions Visited 4 Branch Regions 2 Pre-discovered Areas . | . . . . . Known Exits Taken 1 | . . . 1 . Unknown Exits Taken 3 | 1 1 1 . . Scrap Searched 1 | . . 1 . . Spaces Dug 17 | . . . 14 3 Terrain Destroyed 169 | . . 46 100 23 Melee 7 | . . . 4 3 Projectile . | . . . . . AOE 162 | . . 46 96 20 Terrain Rammed . | . . . . . Walls Destroyed . | . . . . . Machines Disabled . | . . . . . Actions | -11 -10 -10 -9 -9 --------- Run | Yrd Mat Min Mat Sto Total 2414 | 115 795 449 920 135 Wait 74 | 1 32 9 23 9 Move 1981 | 76 672 399 758 76 Hop . | . . . . . Pick Up 68 | 14 16 3 35 . Fast Attach . | . . . . . Attach 37 | 7 4 4 19 3 Detach 1 | . . . 1 . Swap 27 | 1 2 6 9 9 Drop 29 | 4 7 1 12 5 Fire 158 | 12 62 27 54 3 Melee 15 | . . . 9 6 Ram . | . . . . . Kick . | . . . . . Crush . | . . . . . Escape Stasis 24 | . . . . 24 Rewire . | . . . . . Trap . | . . . . . Miscellaneous . | . . . . . Route ------- -11/Scrapyard -10/Materials (discovered 3 exits: *Mat x2 / [*Min]) -10/Mines (discovered 2 exits: *Mat x2) -9/Materials (discovered 5 exits: [*Mat] / *Min x2 / *Sto x2) -9/Storage (discovered 1 exit: Rec) History --------- Turn | Location | Event 2 | -11/Scrapyard | Met Revision 17 33 | -11/Scrapyard | Discovered new exit (range 14) 143 | -11/Scrapyard | Entered Materials 311 | -10/Materials | Build established: Mutant 548 | -10/Materials | Discovered new exit (range 16) 610 | -10/Materials | Discovered new exit (range 16) 743 | -10/Materials | Derelicts attacked the area 832 | -10/Materials | Core integrity fell below 50% 863 | -10/Materials | Discovered new exit (range 13) 1126 | -10/Materials | Build established: Scavenger-Mutant 1353 | -10/Materials | Entered Mines 1353 | -10/Mines | Discovered new exit (range 11) 1726 | -10/Mines | Core integrity fell below 20% 1753 | -10/Mines | Build established: Mutant 1809 | -10/Mines | Excavation squad dispatched 1809 | -10/Mines | A large section of the Mines collapsed 1867 | -10/Mines | Discovered new exit (range 8) 1877 | -10/Mines | Entered Materials 1877 | -9/Materials | Evolved 2 slots: Utility x2 2168 | -9/Materials | Build established: Scavenger-Mutant 2248 | -9/Materials | Lost 7 parts (1p2n1u3w) 2300 | -9/Materials | Discovered new exit (range 9) 2410 | -9/Materials | Discovered new exit (range 8) 2436 | -9/Materials | Core integrity fell below 50% 2703 | -9/Materials | Build established: Mutant 2905 | -9/Materials | Discovered new exit (range 8) 2917 | -9/Materials | Identified exit to Mines 2917 | -9/Materials | Identified exit to Storage 2951 | -9/Materials | Entered Storage 2952 | -9/Storage | Identified exit to Recycling 2993 | -9/Storage | Core integrity fell below 20% 3135 | -9/Storage | Destroyed by G-34 Mercenary with Small Laser Last Messages --------------- 03116_ K-01 Serf collects debris. 03118_ U-05 Engineer lays Concrete. 03121_ Connecting with Terminal... >>Trojan(Disrupt) Trojan loaded successfully. Testing... Disruption routine running. >>Trojan(Botnet) Trojan loaded successfully. Testing... Terminal linked with 1 system. Awaiting botnet instructions. >>Layout(Zone) Retrieving Zone 1Z layout... Downloaded map data. 03121_ U-05 Engineer lays Concrete. 03123_ Lgt. Armor Plating destroyed. 03123_ Grenade Launcher destroyed. 03123_ U-05 Engineer lays Concrete. 03134_ Lgt. Nuclear Core destroyed. Map ----- +----------------------------------------------------+ | ??????????????????# ! # #?????? | | ??????????????????# "T" + #?????? | | ??????????????????# """ # ####### | | ??????????????????########## # | | ???????????????????????????# # | | ???????????????????????????# # | | ???????????????????????????# # | | ???????????????????????????# # | | ???????????????????????????# + | | ???????????????????????????# # | | ?????????????????????????### # | | ?????????????????????????+ # | | ?????????????????????????# # | | ???????????# #?#####+##### # | | ???????#####?###### ##"###+ | | ??????? ? # ###### | | ???????## # | | ???????## """""" # """ """ ^^ | | ??????? # " " # """ """ ^ """ | | ??????? # " " # """ """ ! """ | | ??????? # """""" # """ | | ??????? # + | | ??????? # # """ | | ??????? ########### """ """ $ | | ??????? # ##### "T """ " | | ??????? + T @ g """ "" | | ??????? # "" g % | | ??????? # ##### g | | ??????? ## ##########T######### ## | | ???????### #######??###???????##### | | ??????? #g # " ##????????????????# | | ??????? #a # ##????????????????# | | ???????" # + " ##????????????????# | | ??????? # #T#####????????????????# | | ??????? # #######????????????????# | | ??????? + #?????????????????????## | | ??????? # #?????????????????????# | | ???????### ##????????????????????# | | ?????????# T#????????????????????# | | ????????## ##????????????????????# | | ????????#""""#????????????????????# | | ????????## #????????????????????#### | | ?????????# > #???????????????????????? | | ?????????# #???????????????????????? | | ?????????????????????????????????????? | | ?????????????????????????????????????? | | ?????????????????????????????????????? | | ?????????????????????????????????????? | | | | | +----------------------------------------------------+ Best States ------------- Heat Dissipation 28 Energy Generation 14 Energy Capacity 265 Matter Stores 300 Matter Capacity 300 Sight Range 16 Robot Scan Range 15 Terrain Scan Range 16 Terrain Scan Density 10 Armor Coverage 300 Propulsion Shielding 66 Evasion (%) 55 Recoil Reduction 1 Offensive Hacking 20 Item Schematics ----------------- Hacking Suite | -9/Materials | Scanalyzed Wheel | -9/Materials | Scanalyzed Huge Storage Unit | -9/Materials | Scanalyzed Imp. Propulsion Shielding | -9/Materials | Scanalyzed Robot Schematics ------------------ None Fabricated ------------ Nothing Alien Tech Used ----------------- None Achievements -------------- None Challenges ------------ None Game ------ Seed ArchitectShadingDissipator Manual? 0 Play Time 00:29:09 Cumulative 326.8 hours Start 2024.09.07 @ 14:40:54 End 2024.09.07 @ 15:07:20 Sessions 1 Manual Loads 0 Difficulty Rogue Special Mode None Game No. 376 Rogue 376 Adventurer 0 Explorer 0 Win Type - Total 6 Types 3/1/1/1/0/0/0/0/0 Lore% 39 Gallery% 71 Achievement% 67 Wizard Run 0 Options --------- Layout 1 ASCII 0 Keyboard 0 Movement Numpad Keybinds 0 Fullscreen 1 Font 32/SmallcapsGlow Map View 50x35 Zoom Use 0% Tactical HUD 1 Map Filters NONE Filters NONE Steam 1 RUN: 67a6feac-0cee-4aae-aa78-ab00d833a384